[Event "1st Bella Italia International 2022"]
[Site "Lignano"]
[Date "2022.08.21"]
[Round "7.4"]
[White "Sonis, Francesco"]
[Black "Player, Edmund C"]
[Result "1-0"]
[ECO "A06"]
[WhiteElo "2543"]
[BlackElo "2202"]
[Annotator "TA"]
[PlyCount "95"]
[EventDate "2022.08.18"]
[EventCountry "ITA"]
[SourceTitle "playchess.com"]
[Source "ChessBase"]
[SourceQuality "1"]
[TimeControl "5400+30"]

{[%evp 9,95,40,41,37,54,22,39,27,45,29,33,33,36,25,43,45,81,47,49,51,65,44,69,68,87,63,56,58,64,27,35,25,47,14,36,22,27,0,60,61,63,35,102,57,73,59,75,73,77,79,112,95,106,104,110,77,100,95,131,107,197,189,185,186,228,135,286,289,468,474,607,598,631,364,358,356,621,604,631,626,624,565,2348,2168,1477,1320,1205,1032]} 1. Nf3 {[%emt 0:01:44]} d5 {[%emt 0:00:21]} 2. e3 {[%emt 0:00:04]} g6 {[%emt 0:06:44]} 3. c4 {[%emt 0:00:32]} dxc4 {[%emt 0:01:23]} 4. Bxc4 {[%emt 0:00:19]} Bg7 {[%emt 0:01:00]} 5. Qb3 {[%emt 0:01:29]} e6 {[%emt 0:00:41]} 6. d4 {[%emt 0:00:09] A06: Réti Opening: 1 Nf3 d5.} Nf6 {[%emt 0:05:22]} 7. Qa3 {[%emt 0:00:16]} Nc6 {[%emt 0:12:41] [#]} 8. O-O $146 {[%emt 0:00:15] White is slightly better.} ({Predecessor:} 8. b4 Bf8 9. Bd2 Nd5 10. Bxd5 Qxd5 11. Qa4 b5 12. Qb3 Nxb4 13. O-O Qxb3 14. axb3 {0-1 (28) Nielsen,J-Holm Pedersen,S Aarhus 1966}) 8... a6 {[%emt 0:03:22]} 9. Nc3 {[%emt 0:00:51]} Qe7 {[%emt 0:06:06]} 10. Qxe7+ {[%emt 0:02:07]} Nxe7 {[%emt 0:04:31]} 11. e4 {[%emt 0:01:04]} O-O {[%emt 0:03:45]} 12. Bf4 {[%emt 0:02:17]} Ra7 {[%emt 0:03:46]} 13. Bd3 {[%emt 0:01:28]} b6 {[%emt 0:00:21]} 14. Rac1 {[%emt 0:00:37]} Rd8 {[%emt 0:01:52]} 15. Bb1 {[%emt 0:06:05]} Nh5 {[%emt 0:12:11]} 16. Bg5 {[%emt 0:01:53]} Kf8 {[%emt 0:01:54]} 17. Rfd1 {[%emt 0:01:08][%cal Bf1d1,Bd1d3,Bd3b3][%mdl 32]} Bb7 {[%emt 0:01:18]} 18. Ne2 {[%emt 0:01:06]} Ba8 {[%emt 0:00:41]} 19. Ng3 {[%emt 0:00:19]} Nxg3 {[%emt 0:01:34]} 20. hxg3 {[%emt 0:00:02]} c6 {[%emt 0:06:39]} 21. Rd3 {[%emt 0:03:54]} h6 {[%emt 0:10:07]} 22. Be3 {[%emt 0:01:31]} g5 {[%emt 0:00:15]} 23. Rb3 {[%emt 1:12:50]} Nc8 {[%emt 0:00:24]} (23... c5 $11) 24. e5 $14 {[%emt 0:00:00]} Kg8 {[%emt 0:03:33][%cal Oc6c5]} 25. Nd2 {[%emt 0:00:00][%cal Bf3d2,Bd2b3,Bb3a5][%mdl 32]} Rc7 {[%emt 0:04:03]} (25... Ne7 $14) 26. Be4 {[%emt 0:00:00]} b5 {[%emt 0:01:52]} 27. Ra3 {[%emt 0:00:00]} Bb7 {[%emt 0:00:24]} 28. Rac3 {[%emt 0:00:00]} Ne7 {[%emt 0:01:49]} 29. Nb3 {[%emt 0:00:00]} Bf8 {[%emt 0:01:17]} 30. Na5 {[%emt 0:00:00]} Ba8 {[%emt 0:00:51]} 31. R3c2 {[%emt 0:00:00]} Rdc8 {[%emt 0:01:25]} 32. g4 {[%emt 0:00:00]} Kg7 {[%emt 0:01:23]} 33. a3 {[%emt 0:00:00] 0x0.0024e386c3b8dp-1022s more active pieces.} Ng6 {[%emt 0:00:04][%cal Oc6c5]} 34. g3 {[%emt 0:00:00]} (34. Bxc6 Ne7 $14) 34... f6 {[%emt 0:00:30]} (34... c5 $16 35. Bxa8 Rxa8) 35. exf6+ $18 {[%emt 0:00:00]} (35. Nxc6 Ne7) 35... Kxf6 {[%emt 0:00:01]} 36. Nb3 {[%emt 0:00:00]} ({Much less strong is} 36. Nxc6 Bxc6 37. Rxc6 (37. Bxc6 Ne7 $16) 37... Rxc6 38. Bxc6 (38. Rxc6 Rxc6 39. Bxc6 b4 $16) 38... Bd6 $16) 36... Kf7 {[%emt 0:01:35]} 37. Bd2 {[%emt 0:00:00]} ({Better is} 37. d5 $18) 37... Bg7 $2 {[%emt 0:00:21] [#] This costs Black the game.} (37... c5 $16 38. Bxa8 Rxa8) 38. d5 {[%emt 0:00:00][%cal Bd4d5,Bd5e6][%mdl 32]} Be5 $2 {[%emt 0:01:08]} (38... exd5 {was necessary.} 39. Bxd5+ Ke8) 39. dxe6+ {[%emt 0:00:00]} Kf6 {[%emt 0:00:35]} 40. Nc5 {[%emt 0:00:00]} Nf8 {[%emt 0:00:08]} 41. Nd7+ {[%emt 0:00:00]} Nxd7 {[%emt 0:00:12]} 42. exd7 {[%emt 0:00:00]} Rd8 {[%emt 0:01:50] [#]} (42... Rxd7 43. Bf5 Rcd8 44. Bxd7 Rxd7) 43. Ba5 {[%emt 0:00:00] White is clearly winning.} Rdxd7 {[%emt 0:01:12]} 44. Bxc7 {[%emt 0:00:00]} Rxc7 {[%emt 0:00:25]} 45. Bxc6 {[%emt 0:00:00]} Bxc6 {[%emt 0:00:31]} 46. Rxc6+ {[%emt 0:00:00]} Rxc6 {[%emt 0:00:02]} 47. Rxc6+ {[%emt 0:00:00]} Kg7 {[%emt 0:00:10]} 48. b4 {[%emt 0:00:00] Weighted Error Value: White=0.18 (very precise) /Black=0.43} 1-0

[Event "1st Bella Italia International 2022"]
[Site "Lignano"]
[Date "2022.08.21"]
[Round "7.5"]
[White "Lumachi, Gabriele"]
[Black "Gelle, Istvan"]
[Result "1-0"]
[ECO "D15"]
[WhiteElo "2355"]
[BlackElo "2218"]
[Annotator "ChessBase"]
[PlyCount "57"]
[EventDate "2022.08.18"]
[EventCountry "ITA"]
[SourceTitle "playchess.com"]
[Source "ChessBase"]
[SourceQuality "1"]
[TimeControl "5400+30"]

1. d4 {[%emt 0:00:03]} d5 {[%emt 0:00:07]} 2. c4 {[%emt 0:00:04]} c6 {[%emt 0:00:08]} 3. Nf3 {[%emt 0:00:05]} Nf6 {[%emt 0:00:13]} 4. Nc3 {[%emt 0:00:05]} a6 {[%emt 1:32:02]} 5. e3 {[%emt 0:00:07]} b5 {[%emt 0:00:00]} 6. b3 {[%emt 0:01:22]} Bg4 {[%emt 0:00:00]} 7. h3 {[%emt 0:01:02]} Bxf3 {[%emt 0:00:00]} 8. Qxf3 {[%emt 0:01:11]} e5 {[%emt 0:00:00]} 9. dxe5 {[%emt 0:13:08]} Bb4 {[%emt 0:00:00]} 10. Bd2 {[%emt 0:00:09]} Bxc3 {[%emt 0:00:00]} 11. Bxc3 {[%emt 0:00:07]} Ne4 {[%emt 0:00:00]} 12. Bb4 {[%emt 0:23:43]} bxc4 {[%emt 0:00:00]} 13. e6 {[%emt 0:06:13]} Ra7 {[%emt 0:00:00]} 14. bxc4 {[%emt 0:20:01]} fxe6 {[%emt 0:00:00]} 15. Bd3 {[%emt 0:02:27]} c5 {[%emt 0:00:00]} 16. Bxe4 {[%emt 0:03:55]} Rf8 {[%emt 0:00:00]} 17. Qh5+ {[%emt 0:03:11]} g6 {[%emt 0:00:00]} 18. Bxg6+ {[%emt 0:00:51]} hxg6 {[%emt 0:00:00]} 19. Qxg6+ {[%emt 0:00:08]} Rff7 {[%emt 0:00:00]} 20. Bd2 {[%emt 0:05:37]} Rae7 {[%emt 0:00:00]} 21. O-O {[%emt 0:01:24]} Nc6 {[%emt 0:00:00]} 22. cxd5 {[%emt 0:01:01]} Ne5 {[%emt 0:00:00]} 23. Qg8+ {[%emt 0:04:13]} Rf8 {[%emt 0:09:30]} 24. Qg3 {[%emt 0:00:23]} exd5 {[%emt 0:00:00]} 25. Bc3 {[%emt 0:00:26]} Qd6 {[%emt 0:00:00]} 26. Rab1 {[%emt 0:01:11]} Re6 {[%emt 0:00:00]} 27. Kh1 {[%emt 0:01:21]} Rf5 {[%emt 0:00:00]} 28. Qg8+ {[%emt 0:02:11]} Rf8 {[%emt 0:00:00]} 29. Rb8+ {[%emt 0:01:10]} 1-0

[Event "1st Bella Italia International 2022"]
[Site "Lignano"]
[Date "2022.08.21"]
[Round "7.6"]
[White "Zeller, Frank"]
[Black "Massironi, Marco"]
[Result "1-0"]
[ECO "D86"]
[WhiteElo "2356"]
[BlackElo "2200"]
[Annotator "ChessBase"]
[PlyCount "77"]
[EventDate "2022.08.18"]
[EventCountry "ITA"]
[SourceTitle "playchess.com"]
[Source "ChessBase"]
[SourceQuality "1"]
[TimeControl "5400+30"]

1. d4 {[%emt 0:00:52]} Nf6 {[%emt 0:06:11]} 2. c4 {[%emt 0:00:23]} g6 {[%emt 0:00:08]} 3. Nc3 {[%emt 0:00:31]} d5 {[%emt 0:00:08]} 4. cxd5 {[%emt 0:00:15]} Nxd5 {[%emt 0:00:07]} 5. e4 {[%emt 0:00:09]} Nxc3 {[%emt 0:00:09]} 6. bxc3 {[%emt 0:00:03]} Bg7 {[%emt 0:00:18]} 7. Bc4 {[%emt 0:00:31]} O-O {[%emt 0:00:17]} 8. Be3 {[%emt 0:00:31]} Nc6 {[%emt 0:04:39]} 9. Qd2 {[%emt 0:09:43]} Na5 {[%emt 0:10:48]} 10. Bd3 {[%emt 0:01:54]} e5 {[%emt 0:07:03]} 11. Nf3 {[%emt 0:04:59]} exd4 {[%emt 0:01:17]} 12. cxd4 {[%emt 0:00:16]} c5 {[%emt 0:00:09]} 13. Bg5 {[%emt 0:07:27]} f6 {[%emt 0:03:47]} 14. Be3 {[%emt 0:00:24]} cxd4 {[%emt 0:07:08]} 15. Bxd4 {[%emt 0:02:07]} Be6 {[%emt 0:07:56]} 16. O-O {[%emt 0:02:19]} Rf7 {[%emt 0:09:17]} 17. Bc3 {[%emt 0:07:21]} Rd7 {[%emt 0:05:54]} 18. Rfd1 {[%emt 0:02:07]} Nc6 {[%emt 0:03:02]} 19. Qe2 {[%emt 0:09:16]} Qe7 {[%emt 0:04:25]} 20. Bc4 {[%emt 0:00:27]} Rad8 {[%emt 0:01:31]} 21. Rxd7 {[%emt 0:00:31]} Rxd7 {[%emt 0:00:59]} 22. h4 {[%emt 0:00:55]} a6 {[%emt 0:08:50]} 23. h5 {[%emt 0:04:15]} b5 {[%emt 0:00:06]} 24. Bxe6+ {[%emt 0:00:33]} Qxe6 {[%emt 0:00:06]} 25. Rc1 {[%emt 0:01:05]} Bh6 {[%emt 0:08:26]} 26. Re1 {[%emt 0:03:00]} Ne5 {[%emt 0:04:50]} 27. Bxe5 {[%emt 0:17:32]} fxe5 {[%emt 0:00:02]} 28. Qb2 {[%emt 0:00:18]} Bf4 {[%emt 0:02:01]} 29. hxg6 {[%emt 0:01:22]} hxg6 {[%emt 0:00:06]} 30. g3 {[%emt 0:05:29]} Rd3 {[%emt 0:00:27]} 31. Qe2 {[%emt 0:03:26]} Ra3 {[%emt 0:00:15]} 32. Rd1 {[%emt 0:06:27]} Bh6 {[%emt 0:03:59]} 33. Rd8+ {[%emt 0:00:54]} Bf8 {[%emt 0:00:02]} 34. Ng5 {[%emt 0:03:18]} Qb6 {[%emt 0:01:24]} 35. Qg4 {[%emt 0:04:39]} Qxd8 {[%emt 0:01:17]} 36. Qe6+ {[%emt 0:00:05]} Kg7 {[%emt 0:00:06]} 37. Qf7+ {[%emt 0:00:10]} Kh6 {[%emt 0:00:10]} 38. Qh7+ {[%emt 0:00:06]} Kxg5 {[%emt 0:00:03]} 39. Qh4# {[%emt 0:00:43]} 1-0

[Event "1st Bella Italia International 2022"]
[Site "Lignano"]
[Date "2022.08.21"]
[Round "7.7"]
[White "Priyanka Nutakki"]
[Black "Zuttioni, Federico"]
[Result "1-0"]
[ECO "A47"]
[WhiteElo "2308"]
[BlackElo "2161"]
[Annotator "TA"]
[PlyCount "67"]
[EventDate "2022.08.18"]
[EventCountry "ITA"]
[SourceTitle "playchess.com"]
[Source "ChessBase"]
[SourceQuality "1"]
[TimeControl "5400+30"]

{[%evp 18,67,21,21,22,22,22,22,22,22,27,34,32,0,0,0,10,0,0,0,0,0,0,0,11,15,22,20,29,9,16,-18,-16,-15,44,45,132,108,254,250,229,244,304,233,314,343,663,666,614,620,1141,1064]} 1. d4 {[%emt 0:06:38]} Nf6 {[%emt 0:03:00]} 2. Nf3 {[%emt 0:00:12]} b6 {[%emt 0:01:20]} 3. Bf4 {[%emt 0:00:34]} Bb7 {[%emt 0:00:20]} 4. e3 {[%emt 0:00:07]} e6 {[%emt 0:01:36]} 5. Bd3 {[%emt 0:02:30]} Be7 {[%emt 0:00:52]} 6. h3 {[%emt 0:00:17]} O-O {[%emt 0:03:56]} 7. Nbd2 {[%emt 0:01:04]} c5 {[%emt 0:01:01]} 8. c3 {[%emt 0:00:59]} cxd4 {[%emt 0:02:31]} 9. exd4 {[%emt 0:00:08]} d6 {[%emt 0:01:59]} 10. O-O {[%emt 0:00:34]} Re8 {[%emt 0:01:48] A47: 1 d4 Nf6 2 Nf3 b6: Torre, London and Colle Systems.} 11. Re1 {[%emt 0:01:21]} Nbd7 {[%emt 0:01:00]} 12. a4 {[%emt 0:00:53][%cal Ba2a4,Ba4a5][%mdl 32]} a6 {[%emt 0:00:52] The position is equal.} 13. Bh2 {[%emt 0:01:16]} Nf8 {[%emt 0:01:53]} 14. Nc4 {[%emt 0:08:57]} Ng6 {[%emt 0:05:12]} 15. a5 {[%emt 0:15:30]} b5 {[%emt 0:01:58]} 16. Nb6 {[%emt 0:00:07]} Ra7 {[%emt 0:09:00]} 17. b3 {[%emt 0:05:42] [#]} Nd7 $146 {[%emt 0:17:58]} ({Predecessor:} 17... Nd5 18. Nxd5 Bxd5 19. c4 bxc4 20. bxc4 Ba8 21. d5 Bf6 22. Ra3 exd5 23. Rxe8+ Qxe8 24. cxd5 Bxd5 25. Bxg6 Bxf3 26. Bxh7+ Kxh7 27. Rxf3 {1-0 (53) Kramnik,V (2777)-Duda,J (2658) Berlin 2015}) 18. Nxd7 {[%emt 0:01:08]} Qxd7 {[%emt 0:00:12]} 19. c4 {[%emt 0:00:22]} bxc4 {[%emt 0:09:53]} 20. bxc4 {[%emt 0:02:25][%cal Od4d5]} Bf6 {[%emt 0:00:57]} 21. Be2 {[%emt 0:06:28]} Rc8 {[%emt 0:14:40]} 22. Qd3 {[%emt 0:03:54]} Ne7 {[%emt 0:02:39]} 23. Rac1 {[%emt 0:06:32]} Qd8 {[%emt 0:07:21]} 24. Qd2 {[%emt 0:09:11]} h6 {[%emt 0:05:55]} 25. Bf4 {[%emt 0:01:23]} Nf5 {[%emt 0:02:51]} (25... Bxf3 $11 26. Bxf3 d5) 26. d5 $1 $14 {[%emt 0:00:35]} e5 {[%emt 0:01:03]} ({Black should try} 26... exd5 $1 $14 27. cxd5 Raa8) 27. Bd3 {[%emt 0:00:17] White is more active.} Ne7 {[%emt 0:01:08] Black cannot hold the game after this.} (27... exf4 $16 28. Bxf5 Rc5) 28. Be3 $18 {[%emt 0:00:07]} Raa8 {[%emt 0:00:11]} 29. Rb1 {[%emt 0:00:50][%cal Bc1b1,Bb1b6,Bb6b8][%mdl 32]} Qc7 {[%emt 0:01:14]} 30. Rb6 {[%emt 0:01:21]} Rcb8 {[%emt 0:00:25]} 31. Reb1 {[%emt 0:00:35] [#] Strongly threatening Qb4.} Bc8 $2 {[%emt 0:00:23]} (31... Nc8 32. R6b4 Ne7) 32. c5 {[%emt 0:04:06] White is clearly winning.} Nf5 {[%emt 0:00:32]} 33. c6 {[%emt 0:02:09]} Ne7 {[%emt 0:00:37]} 34. Rxb8 {[%emt 0:02:29] Weighted Error Value: White=0.08 (flawless) /Black=0.38} 1-0

[Event "1st Bella Italia International 2022"]
[Site "Lignano"]
[Date "2022.08.21"]
[Round "7.8"]
[White "Loiacono, Leonardo"]
[Black "Bommini Mounika Akshaya"]
[Result "0-1"]
[ECO "A11"]
[WhiteElo "2291"]
[BlackElo "2107"]
[Annotator "TA"]
[PlyCount "100"]
[EventDate "2022.08.18"]
[EventCountry "ITA"]
[SourceTitle "playchess.com"]
[Source "ChessBase"]
[SourceQuality "1"]
[TimeControl "5400+30"]

{[%evp 13,100,2,10,0,12,4,14,7,0,0,0,0,0,0,0,-9,1,0,0,0,0,-89,-84,-202,-207,-207,-204,-215,-215,-212,-206,-207,-208,-224,-202,-307,-313,-292,-255,-264,-264,-367,-216,-238,-240,-270,-225,-241,-243,-317,-277,-385,-389,-386,-378,-392,-401,-417,-376,-466,-445,-509,-491,-714,-651,-904,-827,-789,-757,-845,-644,-635,-571,-925,-919,-883,-862,-1675,-1636,-922,-922,-29973,-29972,-29981,-29982,-29982,-29983,-29980,-29973]} 1. g3 {[%emt 0:06:39]} d5 {[%emt 0:01:09]} 2. Nf3 {[%emt 0:00:05]} Bg4 {[%emt 0:00:10]} 3. Bg2 {[%emt 0:00:03]} Nd7 {[%emt 0:00:08]} 4. c4 {[%emt 0:00:04]} e6 {[%emt 0:00:09]} 5. cxd5 {[%emt 0:00:06]} exd5 {[%emt 0:00:10]} 6. O-O {[%emt 0:00:05]} Ngf6 {[%emt 0:00:51]} 7. d3 {[%emt 0:00:05]} c6 {[%emt 0:01:53]} 8. h3 {[%emt 0:00:06] A11: English Opening: 1...c6.} Bxf3 {[%emt 0:03:17]} 9. Bxf3 {[%emt 0:00:04]} Bd6 {[%emt 0:01:05]} 10. Bg2 {[%emt 0:00:04] The position is equal. was the old line (10.e4).} O-O {[%emt 0:00:45]} 11. e4 {[%emt 0:04:56]} dxe4 {[%emt 0:02:12]} 12. dxe4 {[%emt 0:00:05]} Nc5 {[%emt 0:01:00]} 13. Qc2 {[%emt 0:00:47][%cal Oe4e5]} Re8 {[%emt 0:05:13][%cal Rc5e4]} 14. Re1 {[%emt 0:03:51] [#]} Nfxe4 $146 {[%emt 0:18:55]} ({Predecessor:} 14... Bf8 15. Rd1 Qe7 16. Nc3 Rad8 17. Rxd8 Qxd8 18. Be3 Qe7 19. Re1 Qd8 20. b3 b6 {1-0 (33) Benidze,D (2514)-Ozturk,E (2201) Edirne 2013}) 15. Rxe4 {[%emt 0:03:29]} (15. Bxe4 f5) 15... Nxe4 {[%emt 0:00:29]} 16. Bxe4 {[%emt 0:00:05]} Bxg3 $1 {[%emt 0:02:37][%cal Oe8e4] Strongly threatening ...Rxe4!} 17. Nc3 {[%emt 0:09:15] [#]} (17. Bxh7+ $11 Kh8 18. fxg3) 17... Bc7 $1 $17 {[%emt 0:05:33] Black continues to play with concentration.} 18. Qd3 {[%emt 0:00:58]} (18. Bxh7+ $17 Kh8 19. Be4) 18... Qxd3 $19 {[%emt 0:09:33]} 19. Bxd3 {[%emt 0:00:04] A strong pair of Bishops.} Re1+ {[%emt 0:00:06]} 20. Kg2 {[%emt 0:00:02]} Rd8 {[%emt 0:03:02]} 21. Bc2 {[%emt 0:00:08]} Bf4 $1 {[%emt 0:01:02]} 22. Bxf4 {[%emt 0:00:05]} Rxa1 {[%emt 0:00:05]} 23. Be3 {[%emt 0:05:10]} a6 {[%emt 0:03:46]} 24. Bb3 {[%emt 0:04:12]} (24. b4 $142) 24... b5 {[%emt 0:01:34]} 25. Ne4 {[%emt 0:06:52]} h6 {[%emt 0:11:18]} 26. Bb6 {[%emt 0:09:03]} Rd7 {[%emt 0:00:41]} 27. Ba5 {[%emt 0:01:04]} Rb1 {[%emt 0:01:47]} (27... Rc1 $142 {aiming for ...c5.} 28. Bb6 a5) 28. Nc5 {[%emt 0:02:27]} Rd6 {[%emt 0:04:18]} 29. Bc3 {[%emt 0:05:05]} a5 {[%emt 0:00:17]} 30. Bxa5 {[%emt 0:04:39]} Rxb2 {[%emt 0:02:18]} 31. Bc3 {[%emt 0:00:08]} Rb1 {[%emt 0:00:09]} ({Wrong is} 31... Re2 $2 32. Kf3 Re8 33. Kf4 $19) 32. Ne4 {[%emt 0:03:52] [#]} Rxb3 $1 {[%emt 0:01:04]} 33. axb3 {[%emt 0:00:11]} Rd3 {[%emt 0:00:01]} 34. Be5 {[%emt 0:02:12]} Rxb3 {[%emt 0:00:09]} 35. Nc5 {[%emt 0:00:04]} Ra3 {[%emt 0:00:37]} 36. h4 {[%emt 0:00:20]} f6 {[%emt 0:01:21][%cal Bf7f6,Bf6f5][%mdl 32]} 37. Bd4 {[%emt 0:00:02]} Kf7 {[%emt 0:00:41]} 38. h5 {[%emt 0:00:18]} (38. Bb2 $142 Ra2 39. Bd4) 38... Ke7 {[%emt 0:03:12] Hoping for ...Kd6.} 39. Ne4 {[%emt 0:00:23]} Ke6 {[%emt 0:00:32] White must now prevent ...Kd5.} 40. Bc5 {[%emt 0:00:03]} Ra4 {[%emt 0:00:56]} 41. f3 {[%emt 0:00:02]} f5 {[%emt 0:01:15]} 42. Nf2 {[%emt 0:00:04]} Rc4 {[%emt 0:00:24]} 43. Bf8 {[%emt 0:00:20]} Kf7 {[%emt 0:00:32]} 44. Bd6 {[%emt 0:00:03]} b4 {[%emt 0:00:56] And now ...b3 would win.} 45. Nd3 {[%emt 0:00:13]} Rd4 {[%emt 0:00:10][%csl LRd3,LRd6]} 46. Ne5+ {[%emt 0:00:05]} Ke6 {[%emt 0:00:08]} 47. Nxc6 {[%emt 0:00:02]} Rd2+ {[%emt 0:00:46] Black mates.} 48. Kg3 {[%emt 0:00:05]} Kxd6 {[%emt 0:00:05]} 49. Nxb4 {[%emt 0:00:04]} Kc5 {[%emt 0:00:15]} 50. Na6+ {[%emt 0:00:05]} Kb6 {[%emt 0:00:05] Weighted Error Value: White=0.73/Black=0.15 (very precise)} 0-1

[Event "1st Bella Italia International 2022"]
[Site "Lignano"]
[Date "2022.08.21"]
[Round "7.9"]
[White "Cappelletto, Joshuaede"]
[Black "Brotto, Alessandro"]
[Result "1-0"]
[ECO "B01"]
[WhiteElo "2266"]
[BlackElo "2027"]
[Annotator "TA"]
[PlyCount "69"]
[EventDate "2022.08.18"]
[EventCountry "ITA"]
[SourceTitle "playchess.com"]
[Source "ChessBase"]
[SourceQuality "1"]
[TimeControl "5400+30"]

{[%evp 11,69,50,66,10,81,64,64,50,46,52,59,59,147,82,187,202,193,188,238,230,222,215,203,189,232,166,183,189,185,174,200,206,200,193,229,231,244,239,260,247,283,277,285,266,260,279,444,436,669,630,652,654,590,468,540,-884,647,639,616,487]} 1. e4 {[%emt 0:00:47]} d5 {[%emt 0:01:12]} 2. exd5 {[%emt 0:00:06]} Nf6 {[%emt 0:00:06]} 3. Nf3 {[%emt 0:00:06]} Qxd5 {[%emt 0:00:41]} 4. Nc3 {[%emt 0:00:08]} Qa5 {[%emt 0:04:55]} 5. d4 {[%emt 0:00:07]} Bg4 {[%emt 0:03:42]} 6. h3 {[%emt 0:00:19]} Bh5 {[%emt 0:02:15] 6...Bxf3 deserves study.} 7. Bc4 {[%emt 0:02:47] B01: Scandinavian Defence.} ({White should try} 7. g4 $14 Bg6 8. Bd2) 7... Nbd7 {[%emt 0:07:19]} (7... Nc6 $11 {keeps the balance.}) 8. Bd2 {[%emt 0:05:37][%cal Oc3d5] Threatens to win with Nd5!} c6 {[%emt 0:00:35] [#] Against Nd5} 9. Nd5 $1 {[%emt 0:10:54] White is slightly better.} Qd8 {[%emt 0:00:11]} 10. Nf4 {[%emt 0:00:05]} Bxf3 {[%emt 0:01:32]} 11. Qxf3 {[%emt 0:00:05] [#]} (11. gxf3 Nb6 12. Bb3 Qxd4 $15) 11... e6 $146 {[%emt 0:06:27] [#]} (11... Nb6 $14 12. Bb3 e6) ({Predecessor:} 11... Nb6 12. Qb3 Nxc4 13. Qxc4 Qd6 14. c3 O-O-O 15. Qxf7 e6 16. Qxe6+ Qxe6+ 17. Nxe6 Re8 {0-1 (55) Gomez Vasquez,L (1735)-Campos Perilla,S (1378) Antioquia 2020}) 12. O-O-O {[%emt 0:07:48] White is much more active. The black rooks are badly placed.} (12. Bxe6 $142 $1 {[%cal Oe1c1][%mdl 512] Hoping for 0-0-0!} fxe6 (12... Bd6 13. Bb3) 13. Nxe6) 12... Nd5 {[%emt 0:08:33]} (12... Qb6 $16) 13. Nxd5 $18 {[%emt 0:10:10]} cxd5 {[%emt 0:00:30]} 14. Bxd5 {[%emt 0:00:14]} ({Not} 14. Bb5 a6 15. Bd3 Bd6 $14) 14... Be7 {[%emt 0:02:28]} (14... exd5 $2 15. Rhe1+ Be7 16. Bb4 $18) (14... Bd6 $142) 15. Bxb7 {[%emt 0:08:29]} Rb8 {[%emt 0:00:07] White must now prevent ...Qb6.} 16. Bf4 {[%emt 0:00:04]} Bg5 {[%emt 0:00:12]} 17. Bc6 {[%emt 0:00:06]} O-O {[%emt 0:03:18]} 18. Bxd7 {[%emt 0:10:48]} Bxf4+ {[%emt 0:00:37]} 19. Qxf4 {[%emt 0:00:04] aiming for Ba4.} Qxd7 {[%emt 0:00:08]} 20. f3 {[%emt 0:01:09]} Qa4 {[%emt 0:01:47] [#]} 21. Kb1 $1 {[%emt 0:03:53]} Rfc8 {[%emt 0:17:45]} 22. Qc1 {[%emt 0:04:58]} a5 {[%emt 0:02:08]} 23. d5 {[%emt 0:01:06]} Qc4 {[%emt 0:07:00]} 24. d6 {[%emt 0:07:10]} a4 {[%emt 0:00:53]} 25. Rd3 {[%emt 0:02:03]} Qb5 {[%emt 0:03:09]} 26. Rhd1 {[%emt 0:01:00]} Rb7 {[%emt 0:02:00]} 27. Rd4 {[%emt 0:05:59][%cal Bd3d4,Bd4d5,Bd5e5][%mdl 32]} ({Don't do} 27. d7 Rd8 28. c4 Qc5) 27... Rcb8 {[%emt 0:02:41]} 28. Ka1 {[%emt 0:02:38]} e5 {[%emt 0:04:40]} (28... Qc6 $142 29. c4 Qc5) 29. Rd5 {[%emt 0:00:18]} Qc4 {[%emt 0:00:16]} (29... Qc6 $142 30. c4 f6) 30. d7 {[%emt 0:00:22]} Rd8 {[%emt 0:01:04]} 31. Rxe5 {[%emt 0:00:05] Re8+ would kill now.} Kf8 {[%emt 0:00:27] Against Re8+} 32. Qe3 {[%emt 0:01:52] White threatens Re8+ and mate.} Rbxd7 {[%emt 0:00:30]} 33. Rd3 {[%emt 0:15:43][%mdl 8192]} (33. Rxd7 $18 Qf1+ 34. Qe1 Qxe1+ 35. Rxe1 Rxd7 36. b4) 33... Rd6 $4 {[%mdl 8192]} (33... Qxc2 $19 34. Qc5+ Qxc5 35. Rxc5 Rxd3) 34. Rxd6 {[%emt 0:00:00][%cal Rd6d8]} Qf1+ {[%emt 0:02:27]} 35. Qe1 {[%emt 0:00:00] Weighted Error Value: White=0.42/Black=0.65} 1-0